bitfinex-derivatives/quotes_ETHF0:USTF0_20250817
["timestamp","ask_amount","ask_price","bid_price","bid_amount"]
[1755410563451,1.4682,4476.0,4475.9,8.93216673]
[1755410565860,0.6291,4476.9,4476.0,0.8497]
[1755410566052,1.37976111,4476.8,4476.7,0.3392]
[1755410566252,1.38466111,4476.8,4476.7,1.4379]
[1755410566457,0.7862118,4476.8,4476.7,5.72436673]
[1755410566657,1.6633118,4476.8,4476.7,5.72436673]
[1755410567758,1.4682,4476.8,4476.7,5.72436673]
[1755410567962,1.66331806,4476.8,4476.7,5.72436673]
[1755410568759,1.66331806,4476.8,4476.7,4.62566673]
[1755410568960,0.5892,4476.5,4476.4,3.2078]
[1755410569161,1.68141806,4476.5,4476.4,7.49426673]
[1755410569365,1.4863,4476.5,4476.4,7.49426673]
[1755410569665,1.68144493,4476.5,4476.4,7.49426673]
[1755410570660,1.68144493,4476.5,4476.4,3.2078]
[1755410570965,1.68144493,4476.5,4476.4,7.49426673]
[1755410573569,1.68144493,4476.5,4476.4,3.2078]
[1755410573766,2.28002807,4476.5,4476.4,3.2078]
[1755410573967,2.28004394,4476.5,4476.4,3.2078]
[1755410574864,2.28004394,4476.5,4476.4,3.4696]
[1755410575166,2.28004394,4476.5,4476.4,3.8372]
[1755410575366,2.28004394,4476.5,4476.4,4.1725]
[1755410576165,2.28004394,4476.5,4476.4,3.2078]
[1755410576371,2.28004394,4476.5,4476.4,4.6757]
[1755410576669,2.28004394,4476.5,4476.4,3.5431]
[1755410576864,2.28004394,4476.5,4476.4,3.2078]
[1755410577064,2.28007479,4476.5,4476.4,3.2078]
[1755410577570,2.28007909,4476.5,4476.4,3.2078]
[1755410577770,2.28007851,4476.5,4476.4,3.2078]
[1755410579163,2.28007851,4476.5,4476.4,3.4696]
[1755410580172,2.28012085,4476.5,4476.4,3.4696]
[1755410580370,2.28012085,4476.5,4476.4,4.1725]
[1755410581571,2.28012085,4476.5,4476.4,4.4142]
[1755410581870,2.28012085,4476.5,4476.4,4.1725]
[1755410582277,2.28015702,4476.5,4476.4,4.1725]
[1755410583574,2.28145766,4476.5,4476.4,4.1725]
[1755410583884,2.28145766,4476.5,4476.4,3.2078]
[1755410584972,2.28145766,4476.5,4476.4,3.4696]
[1755410585169,2.28145766,4476.5,4476.4,4.1725]
[1755410585369,2.28146264,4476.5,4476.4,4.1725]
[1755410586770,2.28146264,4476.5,4476.4,4.6757]
[1755410594376,2.08618378,4476.5,4476.4,4.6757]
[1755410594577,2.28030703,4476.5,4476.4,4.6757]
[1755410594777,0.79400703,4476.5,4476.4,8.96216673]
[1755410596082,0.19412325,4476.5,4476.4,8.96216673]
[1755410598083,3.2078,4477.6,4476.4,8.96216673]
[1755410598381,0.6388,4477.7,4477.4,1.2678]
[1755410598582,0.8948,4477.7,4477.5,0.5071]
[1755410598778,1.055,4478.2,4478.1,0.2479]
[1755410599084,1.44095966,4478.2,4478.1,1.2678]
[1755410599389,0.5029,4478.2,4478.1,1.2678]
[1755410600981,0.2469,4478.2,4478.1,1.2678]
[1755410601489,0.3832,4478.4,4478.1,1.2678]
[1755410601688,0.256,4478.7,4478.3,8.08216673]
[1755410601885,1.3106,4478.7,4478.6,1.2678]
[1755410602284,0.6392,4479.0,4478.6,0.7607]
[1755410602490,0.6718,4479.0,4478.9,0.5879]
[1755410602689,1.4794,4479.0,4478.9,1.2678]
[1755410602885,1.4794,4479.0,4478.9,5.55426673]
[1755410605090,1.4794,4479.0,4478.9,4.28646673]
[1755410605593,1.4794,4479.0,4478.9,5.30636673]
[1755410605991,1.4794,4479.0,4478.9,5.04916673]
[1755410606194,1.4794,4479.0,4478.9,5.30636673]
[1755410606699,1.4794,4479.0,4478.9,5.04916673]
[1755410607097,1.4794,4479.0,4478.9,4.28646673]
[1755410608093,0.5846,4478.4,4478.3,3.2078]
[1755410608299,1.4794,4478.4,4478.3,3.2078]
[1755410608492,1.4794,4478.4,4478.3,3.6294]
[1755410608697,1.4794,4478.4,4478.3,3.9705]
[1755410609300,1.4794,4478.4,4477.8,3.2078]
[1755410609499,0.1688,4478.1,4478.0,0.2499]
[1755410609702,1.4794,4478.1,4478.0,0.7627]
[1755410610002,1.4794,4478.1,4478.0,5.55426673]
[1755410610702,1.48459704,4478.1,4478.0,5.55426673]
[1755410617203,0.00519704,4478.1,4478.0,5.55426673]
[1755410618810,1.2238,4478.9,4478.8,0.5879]
[1755410619012,1.4794,4478.9,4478.8,1.2626]
[1755410620507,0.5846,4478.7,4478.6,3.2078]
[1755410620706,1.4794,4478.7,4478.6,3.2078]
[1755410621311,1.4794,4478.7,4478.6,3.4577]
[1755410621613,1.4794,4478.7,4478.6,3.2078]
[1755410621909,1.4794,4478.7,4478.6,4.4704]
[1755410622807,1.4794,4478.7,4478.6,3.9653]
[1755410623010,1.4794,4478.7,4478.6,3.2078]
[1755410624215,1.4794,4478.7,4478.6,4.2225]
[1755410628416,0.5818,4478.2,4478.1,3.2078]
[1755410628618,1.65366181,4478.2,4478.1,3.4683]
[1755410628910,1.65366181,4478.2,4478.1,3.9811]
[1755410629116,1.65366181,4478.2,4478.1,4.4892]
[1755410631418,1.4622,4478.2,4478.1,4.4892]
[1755410631615,1.65368562,4478.2,4478.1,4.4892]
[1755410632013,1.4622,4478.2,4478.1,4.4892]
[1755410633318,1.4622,4478.7,4478.6,0.7665]
[1755410633616,2.25393752,4478.7,4478.6,1.2814]
[1755410633817,1.65369843,4478.7,4478.6,1.2814]
[1755410635621,0.1663,4478.3,4478.2,1.027]
[1755410635918,1.4622,4478.7,4478.6,5.56786673]
[1755410636109,2.25403769,4478.7,4478.6,5.56786673]
[1755410636309,2.25403769,4478.7,4478.6,1.2814]
[1755410636520,1.65372092,4478.7,4478.6,1.2814]
[1755410640620,1.65373729,4478.7,4478.6,1.2814]
[1755410642719,1.4622,4478.7,4478.6,1.2814]
[1755410643021,0.19159696,4478.7,4478.6,1.2814]
[1755410643215,1.22409696,4478.7,4478.6,1.2814]
[1755410643412,1.65379696,4478.7,4478.6,1.2814]
[1755410644318,0.19159696,4478.7,4478.6,1.027]
[1755410644525,1.65379696,4478.7,4478.6,4.4892]
[1755410645728,1.6538905,4478.7,4478.6,4.4892]
[1755410651733,1.4622,4478.7,4478.6,4.4892]
[1755410663736,0.3669,4479.7,4478.6,3.2078]
[1755410663942,2.04219605,4479.6,4479.5,1.0193]
[1755410664242,1.4411,4479.6,4479.5,1.0193]
[1755410664440,1.4411,4479.6,4479.5,0.7564]
[1755410666039,2.0418586,4479.6,4479.4,3.2078]
[1755410666240,1.4411,4479.5,4479.4,7.49426673]
[1755410667144,1.4411,4479.5,4479.4,7.74886673]
[1755410667336,1.4411,4479.5,4479.4,8.25066673]
[1755410667941,1.4411,4479.5,4479.4,8.51356673]
[1755410668134,1.4411,4479.5,4479.4,8.25066673]
[1755410668838,1.4411,4479.5,4479.4,8.08266673]
[1755410671540,1.4411,4479.5,4479.4,8.25066673]
[1755410671741,1.4411,4479.5,4479.4,8.77416673]
[1755410672242,1.4411,4479.5,4479.4,3.2078]
[1755410673645,1.4411,4479.5,4479.4,3.9642]
[1755410674141,1.4411,4479.5,4479.4,4.4877]
[1755410674841,1.4411,4479.5,4479.4,3.9642]
[1755410675040,1.4411,4479.5,4479.4,3.5416]
[1755410675235,1.4411,4479.5,4479.4,3.2078]
[1755410678558,1.4411,4479.5,4479.4,3.4624]
[1755410680459,1.4411,4479.5,4479.4,3.9642]
[1755410680658,1.4411,4479.5,4479.4,4.2248]
[1755410680957,1.4411,4479.5,4479.4,4.4877]
[1755410681153,1.4411,4479.5,4479.4,4.2248]
[1755410681356,1.4411,4479.5,4479.4,3.9642]
[1755410681958,1.63070245,4479.5,4479.4,4.2271]
[1755410682653,1.63070245,4479.5,4479.4,4.4877]
[1755410683359,1.63072216,4479.5,4479.4,4.4877]
[1755410683856,1.63072216,4479.5,4479.4,3.9642]
[1755410684056,1.63072216,4479.5,4479.4,3.7962]
[1755410684957,2.23054295,4479.5,4479.4,3.2078]
[1755410685459,0.5711,4478.8,4478.7,3.5416]
[1755410685653,1.63074344,4478.8,4478.7,3.7962]
[1755410686051,1.63074344,4478.8,4478.7,3.9642]
[1755410686252,1.63074344,4478.8,4478.7,4.2271]
[1755410688664,1.63076252,4478.8,4478.7,4.2271]
[1755410689959,1.63076874,4478.8,4478.7,3.9642]
[1755410691266,1.63076874,4478.8,4478.7,4.2088]
[1755410691867,1.63075059,4478.8,4478.7,4.2088]
[1755410692267,1.63075059,4478.8,4478.7,3.9642]
[1755410693062,1.63075059,4478.8,4478.7,4.2088]
[1755410694170,1.63075059,4478.8,4478.7,3.9642]
[1755410694660,1.63075059,4478.8,4478.7,4.2088]
[1755410695062,1.63075059,4478.8,4478.7,4.4485]
[1755410695767,1.63075059,4478.8,4478.7,4.2039]
[1755410695969,1.63075059,4478.8,4478.7,3.9642]
[1755410696163,1.36031929,4478.8,4478.2,3.2078]
[1755410696370,0.5743,4478.4,4478.3,5.02946673]
[1755410696565,1.62525059,4478.4,4478.3,5.27406673]
[1755410696765,1.62525059,4478.4,4478.3,0.9876]
[1755410697167,1.4356,4478.4,4478.3,0.9876]
[1755410698771,1.62503276,4478.4,4478.3,0.9876]
[1755410698970,1.62503276,4478.4,4478.3,1.2273]
[1755410700777,1.4356,4478.4,4478.3,1.2273]
[1755410700970,1.62497776,4478.4,4478.3,1.2273]
[1755410701171,1.4356,4478.4,4478.3,1.2273]
[1755410701474,1.1939,4478.4,4478.3,1.2273]
[1755410701773,1.4356,4478.4,4478.3,1.2273]
[1755410701973,1.62491588,4478.4,4478.3,0.5743]
[1755410702170,1.62491588,4478.4,4478.3,1.2273]
[1755410702762,3.5805,4479.1,4478.3,0.814]
[1755410702974,0.3727,4479.5,4478.9,1.2273]
[1755410703168,0.1893999,4479.4,4479.3,1.2273]
[1755410703373,3.2078,4479.8,4479.3,0.5673]
[1755410703676,0.5743,4479.6,4479.5,1.2273]
[1755410703966,3.2078,4480.3,4479.5,0.5673]
[1755410704174,0.4123,4479.7,4479.6,4.85376673]
[1755410704374,1.4356,4479.7,4479.6,0.5673]
[1755410704774,1.4356,4479.7,4479.6,1.2273]
[1755410706374,1.0629,4479.7,4479.6,0.5743]
[1755410706568,0.947,4479.6,4479.5,0.3276]
[1755410706768,0.947,4479.6,4479.3,4.28646673]
[1755410706769,1.1364412,4479.6,4479.3,4.28646673]
[1755410707074,1.4356,4478.9,4478.8,1.2273]
[1755410707573,1.4356,4478.9,4478.8,0.5743]
[1755410707873,1.4356,4478.9,4478.8,0.743]
[1755410708074,1.4356,4478.9,4478.8,0.9876]
[1755410708270,1.62503212,4478.9,4478.7,3.2078]
[1755410708469,1.62503212,4478.8,4478.7,3.2078]
[1755410709874,1.62503212,4478.8,4478.7,3.9508]
[1755410710179,1.62503212,4478.8,4478.7,4.4351]
[1755410711875,1.4356,4478.8,4478.7,4.4351]
[1755410714078,1.4356,4478.8,4478.7,0.743]
[1755410715877,1.4356,4478.8,4478.7,1.2273]
[1755410718882,1.4356,4478.8,4478.7,0.5743]
[1755410719081,1.4356,4478.8,4478.7,0.9886]
[1755410721181,1.4356,4478.8,4478.7,1.2477]
[1755410722184,0.5739,4478.2,4478.1,4.2165]
[1755410722388,1.4323,4478.2,4478.1,4.4624]
[1755410722779,0.3733,4478.9,4478.1,4.4624]
[1755410722979,0.3733,4478.9,4478.7,0.6008]
[1755410723283,1.1919,4478.9,4478.8,1.2546]
[1755410723687,1.4323,4478.9,4478.8,1.2546]
[1755410727084,0.3996,4478.9,4478.8,1.2546]
[1755410727277,1.4323,4478.9,4478.8,1.2546]
[1755410733485,2.02875292,4478.9,4478.8,0.3417]
[1755410733693,1.4323,4478.8,4478.7,0.2395]
[1755410733885,1.4323,4478.8,4478.7,4.52596673]
[1755410734085,1.4323,4478.8,4478.7,4.69756673]
[1755410734286,1.4323,4478.8,4478.7,5.03606673]
[1755410735287,2.02919021,4478.8,4478.7,5.28196673]
[1755410735993,2.02919021,4478.8,4478.7,5.54106673]
[1755410736194,1.4323,4478.8,4478.7,5.54106673]
[1755410736393,2.02971727,4478.8,4478.7,5.54106673]
[1755410741589,0.59741727,4478.8,4478.7,5.54106673]
[1755410742293,0.83781727,4478.8,4478.7,5.54106673]
[1755410742599,1.85541727,4478.8,4478.7,5.54106673]
[1755410743296,2.02971727,4478.8,4478.7,5.54106673]
[1755410744293,1.61071727,4478.8,4478.7,5.54106673]
[1755410744993,0.59741727,4478.8,4478.7,5.54106673]
[1755410746190,1.85541727,4478.8,4478.7,5.54106673]
[1755410747398,2.02971727,4478.8,4478.7,5.54106673]
[1755410748895,2.02989411,4478.8,4478.7,5.54106673]
[1755410750097,0.59759411,4478.8,4478.7,5.54106673]
[1755410750297,0.8327,4479.7,4479.3,0.408]
[1755410750495,0.8327,4479.4,4479.3,0.7375]
[1755410750694,1.43020665,4479.4,4479.3,0.7375]
[1755410750893,2.04110665,4479.4,4479.3,0.7375]
[1755410751599,2.04110665,4479.4,4479.3,0.9771]
[1755410752098,2.04110665,4479.4,4479.3,0.7375]
[1755410752500,2.04110665,4479.4,4479.1,3.4474]
[1755410752501,2.04110665,4479.4,4479.1,3.2078]
[1755410752697,1.79460665,4479.3,4479.2,4.28646673]
[1755410753000,2.04110665,4479.3,4479.2,5.02396673]
[1755410753193,2.04110665,4479.3,4479.2,0.7375]
[1755410754595,2.04110665,4479.3,4479.2,0.9771]
[1755410754790,2.04110665,4479.3,4479.2,0.569]
[1755410754997,2.04110665,4479.3,4479.2,0.7375]
[1755410756000,2.04110665,4479.3,4479.2,0.9771]
[1755410756405,1.4436,4479.3,4479.2,0.9771]
[1755410756802,1.4436,4479.3,4479.1,3.2078]
[1755410757097,1.4436,4478.6,4478.5,4.1856]
[1755410757298,1.4436,4478.6,4478.5,4.4252]
[1755410757500,1.4436,4478.6,4478.5,8.71166673]
[1755410758900,1.0828,4478.6,4478.5,8.71166673]
[1755410759206,1.4436,4478.6,4478.5,8.71166673]
[1755410759602,0.8594,4479.7,4478.6,0.6476]
[1755410759805,0.4187,4478.8,4478.7,0.8093]
[1755410760102,1.1951,4478.8,4478.7,5.33536673]
[1755410760303,3.2078,4479.8,4478.7,4.85626673]
[1755410760605,1.4436,4478.9,4478.8,4.52596673]
[1755410760799,0.5842,4478.9,4478.6,4.45496673]
[1755410761012,1.4436,4478.8,4478.7,5.26356673]
[1755410761307,1.4436,4478.8,4478.7,0.7375]
[1755410761505,1.4436,4478.8,4478.7,5.02396673]
[1755410761901,1.4436,4478.8,4478.7,5.50386673]
[1755410762103,1.4436,4478.8,4478.7,5.26426673]
[1755410763112,1.4436,4478.8,4478.7,4.61596673]
[1755410763408,1.4436,4478.8,4478.7,5.02396673]
[1755410764803,1.4436,4478.8,4478.0,3.2078]
[1755410764804,0.5842,4478.1,4478.0,3.2078]
[1755410765008,1.4436,4478.1,4478.0,3.5373]
[1755410765207,1.4436,4478.1,4478.0,4.4252]
[1755410765403,0.8343,4478.1,4478.0,8.71166673]
[1755410765604,0.6093,4478.9,4478.1,0.6476]
[1755410765806,2.04077727,4478.8,4478.7,0.7375]
[1755410766004,0.2501,4479.1,4478.7,1.2174]
[1755410766213,0.8594,4479.7,4479.0,0.408]
[1755410766506,2.04089442,4479.6,4479.5,0.9771]
[1755410767012,2.04089442,4479.6,4479.5,1.2174]
[1755410767202,1.4436,4479.6,4479.5,1.2174]
[1755410774709,23.4308,4480.3,4479.5,5.50386673]
[1755410774914,1.4436,4479.7,4479.6,5.50386673]
[1755410775115,1.4436,4479.7,4479.6,1.2174]
[1755410779416,1.4436,4479.7,4479.0,3.2078]
[1755410779612,0.5842,4479.7,4479.6,0.7678]
[1755410780017,1.0774,4479.7,4479.6,1.0184]
[1755410780219,1.4472,4479.7,4479.6,1.0184]
[1755410783216,1.4472,4479.7,4479.6,1.2711]
[1755410785218,1.4472,4479.7,4479.5,3.2078]
[1755410785423,2.01600792,4479.6,4479.5,3.2078]
[1755410785626,1.15300792,4479.6,4478.9,3.4662]
[1755410785931,1.4191,4479.1,4479.0,5.55756673]
[1755410786529,0.2461,4479.5,4479.1,0.2506]
[1755410786729,1.0493,4479.5,4479.4,1.2711]
[1755410787124,1.4191,4479.5,4479.4,5.55756673]
[1755410797833,1.4191,4479.5,4479.4,1.2711]
[1755410798732,1.4191,4479.5,4479.4,5.55756673]
[1755410800735,0.6159,4480.1,4479.4,5.13886673]
[1755410800937,1.2602,4479.6,4479.5,5.13886673]
[1755410801136,1.85943609,4479.6,4479.5,0.8524]
[1755410801336,2.01833609,4479.6,4479.5,5.13886673]
[1755410801537,2.01833609,4479.6,4479.5,5.55676673]
[1755410803641,1.4191,4479.6,4479.5,5.55676673]
[1755410805643,1.4191,4479.6,4479.5,1.2703]
[1755410806040,0.8022,4479.6,4479.5,1.2703]
[1755410806242,1.4191,4479.6,4479.5,1.2703]
[1755410806543,0.8022,4479.6,4479.5,0.3413]
[1755410806744,2.01842205,4479.6,4479.5,0.3413]
[1755410807046,1.4191,4479.5,4479.4,3.2078]
[1755410807239,2.01842205,4479.5,4479.4,3.2078]
[1755410809742,2.01842205,4479.5,4479.4,3.4673]
[1755410810242,2.01842205,4479.5,4479.4,3.6289]
[1755410810441,2.01842205,4479.5,4479.4,3.9554]
[1755410810843,2.01842205,4479.5,4479.4,8.24186673]
[1755410812251,2.01842205,4479.5,4479.4,8.74046673]
[1755410816253,1.41332205,4479.5,4479.4,8.74046673]
[1755410816453,2.04532205,4479.5,4479.4,8.74046673]
[1755410816654,1.446,4479.5,4479.4,8.74046673]
[1755410817457,1.1948,4479.5,4479.4,8.74046673]
[1755410818053,1.446,4479.5,4479.4,8.74046673]
[1755410819057,0.8899,4480.2,4479.5,0.6682]
[1755410819248,1.2204,4480.0,4479.9,0.3214]
[1755410819446,2.07519125,4480.0,4479.9,0.7476]
[1755410821156,2.07519125,4480.0,4479.9,0.9896]
[1755410821456,2.07519125,4480.0,4479.6,0.4087]
[1755410821658,0.5862,4479.8,4479.7,0.5878]
[1755410821858,2.07519125,4479.8,4479.7,5.03406673]
[1755410822757,2.07519125,4479.8,4479.7,5.27606673]
[1755410823353,2.07519125,4479.8,4479.7,5.03406673]
[1755410825358,1.4761,4479.5,4479.4,3.2078]
[1755410825559,2.07519125,4479.5,4479.4,4.454]
[1755410825759,2.07519125,4479.5,4479.4,8.74046673]
[1755410825963,1.4761,4479.5,4479.4,8.74046673]
[1755410826153,1.0529,4479.5,4479.4,8.74046673]
[1755410826757,1.3041,4479.5,4479.4,8.74046673]
[1755410827261,0.9233,4479.5,4479.4,8.74046673]
[1755410827458,1.3041,4479.5,4479.4,8.74046673]
[1755410828262,1.4761,4479.5,4479.4,8.74046673]
[1755410830663,1.4761,4479.5,4479.4,4.454]
[1755410833066,0.4142,4479.5,4479.4,4.454]
[1755410833361,0.6721,4479.5,4479.4,4.454]
[1755410833562,1.3041,4479.5,4479.4,4.454]
[1755410833762,1.4761,4479.5,4479.4,4.454]
[1755410833964,0.3808,4480.2,4479.4,3.7858]
[1755410834163,2.07483246,4480.1,4480.0,0.7476]
[1755410834367,2.07483246,4480.1,4480.0,0.5809]
[1755410834660,2.07483246,4480.1,4479.8,0.242]
[1755410834661,0.5862,4479.9,4479.8,0.7476]
[1755410834862,2.07483246,4479.9,4479.8,0.7476]
[1755410842773,0.6109,4479.8,4479.7,0.1596]
[1755410842969,2.03873246,4479.8,4479.7,0.5767]
[1755410843165,2.03873246,4479.8,4479.7,5.27946673]
[1755410843476,2.03873246,4479.8,4479.7,5.53016673]
[1755410845265,2.03873246,4479.8,4479.7,1.2437]
[1755410845470,2.03873246,4479.8,4479.7,5.53016673]
[1755410846172,2.03873246,4479.8,4479.7,4.28646673]
[1755410847776,2.03873246,4479.8,4479.7,4.54476673]
[1755410847972,2.03873246,4479.8,4479.7,5.03166673]
[1755410853785,2.03873246,4479.8,4479.7,5.27946673]
[1755410853981,2.03873246,4479.8,4479.7,5.53016673]
[1755410859895,2.03873246,4479.8,4479.7,1.2437]
[1755410860193,2.03873246,4479.8,4479.7,5.53016673]
[1755410861497,2.03873246,4479.8,4479.7,1.2437]
[1755410861799,2.03873246,4479.8,4479.7,5.53016673]
[1755410863499,2.03873246,4479.8,4479.7,1.2437]
[1755410863795,2.03873246,4479.8,4479.7,5.53016673]
[1755410869802,2.03873246,4479.8,4479.7,1.2437]
[1755410870006,2.03873246,4479.8,4479.7,5.53016673]
[1755410873002,2.03873246,4479.8,4479.7,1.2437]
[1755410873198,2.03873246,4479.8,4479.7,5.53016673]
[1755410876202,1.22113246,4479.8,4479.7,5.53016673]
[1755410876404,1.89303246,4479.8,4479.7,5.53016673]
[1755410876605,2.06443246,4479.8,4479.7,5.53016673]
[1755410877707,2.06443246,4479.8,4479.7,4.60486673]
[1755410878506,2.06443246,4479.8,4479.7,5.01786673]
[1755410878706,2.06443246,4479.8,4479.7,5.25586673]
[1755410879007,2.06443246,4479.8,4479.7,5.49316673]
[1755410880808,2.06443246,4479.8,4479.7,1.2067]
[1755410881008,2.06443246,4479.8,4479.7,5.49316673]
[1755410881811,0.59873246,4479.8,4479.7,5.49316673]
[1755410882010,1.18533246,4479.8,4479.7,4.84216673]
[1755410882199,2.06443246,4479.8,4479.7,4.60486673]
[1755410882605,2.06443246,4479.8,4479.7,5.01786673]
[1755410883906,2.06443246,4479.8,4479.7,5.25586673]
[1755410885713,2.06443246,4479.8,4479.7,5.49316673]
[1755410888211,0.59873246,4479.8,4479.7,5.49316673]
[1755410891015,0.83963246,4479.8,4479.7,5.49316673]
[1755410892018,0.59873246,4479.8,4479.7,5.49316673]
[1755410892217,0.8791,4480.6,4480.5,0.3389]
[1755410892417,2.06389365,4480.6,4480.5,1.2279]
[1755410892616,2.06389365,4480.6,4480.5,5.51436673]
[1755410895209,0.8275,4480.6,4480.5,5.51436673]
[1755410895420,1.209,4480.6,4480.5,5.51436673]
[1755410895822,0.8275,4480.6,4480.5,5.51436673]
[1755410896123,1.4657,4480.6,4480.5,5.51436673]
[1755410896317,0.8791,4480.9,4480.6,0.6517]
[1755410896518,1.4657,4480.9,4480.8,0.5762]
[1755410896722,2.06309394,4480.9,4480.8,1.2279]
[1755410897223,2.06309394,4480.9,4480.8,0.3389]
[1755410897524,1.4441,4480.4,4480.3,4.0447]
[1755410898024,1.4441,4480.4,4480.3,4.4664]
[1755410898823,0.4976,4480.4,4480.3,4.4664]
[1755410899421,0.8581,4480.4,4480.3,4.4664]
[1755410899824,1.2703,4480.4,4480.3,4.4664]
[1755410900026,0.4162,4480.5,4480.4,1.0055]
[1755410900220,1.2703,4480.5,4480.4,5.54506673]
[1755410900615,0.8541,4481.1,4480.5,0.6748]
[1755410900821,1.4441,4481.1,4481.0,0.7624]
[1755410901022,2.04123749,4481.1,4481.0,0.7624]
[1755410902426,1.4441,4481.1,4481.0,0.7624]
[1755410903028,1.4441,4481.1,4481.0,1.2586]
[1755410903422,1.4441,4481.1,4481.0,0.7624]
[1755410903928,1.4441,4481.1,4481.0,5.37706673]
[1755410904129,1.4441,4481.1,4481.0,5.54566673]
[1755410904531,0.3494,4481.2,4481.1,1.2592]
[1755410904731,0.3494,4481.2,4481.1,5.54566673]
[1755410904928,0.1,4481.2,4481.1,1.2592]
[1755410907629,0.1,4481.2,4481.1,4.2592]
[1755410910530,0.1,4481.2,4481.1,1.2592]
[1755410910733,0.3494,4481.2,4481.1,1.2592]
[1755410911424,0.9541,4481.2,4481.1,1.2592]
[1755410912331,1.2023,4481.2,4481.1,1.2592]
[1755410912536,0.9581,4481.2,4481.1,1.2592]
[1755410912732,0.3494,4481.2,4481.1,1.2592]
[1755410912933,0.1,4481.2,4481.1,1.2592]
[1755410913144,1.5441,4481.2,4481.1,1.2592]
[1755410916140,1.2999,4481.2,4481.1,1.2592]
[1755410916346,1.1959,4481.1,4481.0,0.5944]
[1755410916545,1.4441,4481.1,4481.0,0.763]
[1755410916844,1.4441,4481.1,4481.0,5.54566673]
[1755410917946,1.4441,4481.1,4481.0,5.29256673]
[1755410918148,1.4441,4481.1,4481.0,4.62716673]
[1755410918347,1.4441,4481.1,4481.0,4.88086673]
[1755410918547,1.4441,4481.1,4481.0,5.04946673]
[1755410918748,1.4441,4481.1,4481.0,5.54566673]
[1755410919048,1.4441,4481.1,4481.0,4.28646673]
[1755410919244,0.59,4480.6,4480.5,0.5944]
[1755410919450,1.4441,4480.6,4480.5,1.0161]
[1755410919645,1.4441,4480.6,4480.5,5.54566673]
[1755410920543,1.4441,4480.6,4480.5,4.28646673]
[1755410921452,1.4441,4480.6,4480.5,4.54016673]
[1755410922552,1.4441,4480.6,4480.5,4.70856673]
[1755410922751,1.4441,4480.6,4480.5,4.87716673]
[1755410925850,1.4441,4480.6,4480.5,5.04946673]
[1755410926457,1.4441,4480.6,4480.5,5.30256673]
[1755410927458,1.4441,4480.6,4480.5,5.54566673]
[1755410930650,1.4441,4480.6,4480.5,1.2592]
[1755410930850,1.4441,4480.6,4480.5,5.54566673]
[1755410931054,4.5971,4481.2,4481.1,1.2542]
[1755410931252,5.36509064,4481.2,4481.1,1.2542]
[1755410931456,4.7685,4481.2,4481.1,0.7471]
[1755410931652,0.1675,4480.9,4480.8,0.4074]
[1755410931962,1.4607,4480.5,4480.4,0.4069]
[1755410932368,1.4607,4480.5,4480.4,5.54066673]
[1755410934567,1.4607,4481.1,4481.0,1.2542]
[1755410935058,1.4607,4481.1,4481.0,5.54066673]
[1755410935962,1.4607,4481.1,4481.0,5.28886673]
[1755410936361,1.4607,4481.1,4481.0,5.54066673]
[1755410937867,0.1,4481.2,4481.1,1.2542]
[1755410939261,0.7262,4481.2,4481.1,1.2542]
[1755410939461,1.3893,4481.2,4481.1,1.2542]
[1755410940468,1.5607,4481.2,4481.1,1.2542]
[1755410940667,1.5607,4481.2,4481.1,0.5798]
[1755410940869,1.5607,4481.2,4481.1,1.2542]
[1755410941363,1.3893,4481.2,4481.1,1.2542]
[1755410941570,0.5201,4481.2,4481.1,1.2542]
[1755410942770,0.3526,4481.2,4481.1,1.2542]
[1755410942968,0.1,4481.2,4481.1,1.2542]
[1755410945567,0.1,4481.2,4481.1,21.4792]
[1755410946369,0.5915,4482.7,4482.6,1.19138673]
[1755410946569,1.43084071,4482.7,4482.6,1.79108673]
[1755410946770,1.43084071,4482.7,4482.6,1.4465]
[1755410946973,0.8345,4482.6,4482.5,3.2078]
[1755410947374,0.8345,4482.6,4482.5,3.80418673]
[1755410948077,0.8345,4482.6,4482.5,3.97098673]
[1755410948278,0.243,4483.6,4482.6,0.2401]
[1755410948480,1.4607,4483.3,4483.2,3.6264]
[1755410948778,1.4607,4483.3,4483.2,3.55238673]
[1755410949177,1.4607,4483.3,4483.2,3.2078]
[1755410949380,1.4607,4483.3,4482.4,3.4596]
[1755410949575,0.5008,4483.2,4482.5,0.34458673]
[1755410949878,3.2078,4483.9,4482.5,1.79108673]
[1755410949879,1.3353,4482.6,4482.5,1.79108673]
[1755410950080,0.5819,4482.6,4482.5,1.4465]
[1755410950276,0.1714,4482.6,4482.5,1.79108673]
[1755410950475,0.4919,4482.8,4482.6,0.8515]
[1755410950780,0.4144,4482.8,4482.7,1.4465]
[1755410950984,1.3353,4482.8,4482.7,1.79108673]
[1755410951485,0.8345,4482.8,4482.7,1.79108673]
[1755410951689,0.7438,4483.8,4482.8,0.8515]
[1755410951982,1.3353,4483.1,4483.0,3.2078]
[1755410952182,1.3353,4483.1,4483.0,3.6299]
[1755410952378,1.3353,4483.1,4483.0,4.58588673]
[1755410952787,1.3353,4483.1,4483.0,4.99888673]
[1755410953681,0.3389,4483.2,4483.1,0.4186]
[1755410953986,1.3353,4483.2,4483.1,1.79108673]
[1755410954173,1.3353,4483.2,4483.1,1.4465]
[1755410956582,1.3353,4483.2,4483.1,0.8468]
[1755410956786,1.3353,4483.2,4483.0,3.2078]
[1755410956787,0.5915,4483.2,4483.0,3.2078]
[1755410957088,1.3353,4483.1,4483.0,3.4596]
[1755410957287,1.3353,4483.1,4483.0,3.986]
[1755410957586,1.3353,4483.1,4483.0,5.01658673]
[1755410958682,1.0834,4483.1,4483.0,5.01658673]
[1755410959092,1.3457,4483.1,4483.0,5.01658673]
[1755410964201,0.5819,4483.1,4483.0,5.01658673]
[1755410965002,0.8316,4483.1,4483.0,5.01658673]
[1755410966102,0.4144,4483.1,4483.0,5.01658673]
[1755410966401,0.1714,4483.1,4483.0,5.01658673]
[1755410966603,0.5904,4483.1,4483.0,5.01658673]
[1755410966798,1.1024,4483.1,4483.0,5.01658673]